fUSD/lending_fUSD_20240121
["ID","MTS","AMOUNT","RATE_DAILY","PERIOD"]
[312442770,1705876518766,-500.0,0.00044383,31]
[312442771,1705876518797,-500.0,0.00044383,31]
[312442772,1705876518826,-500.0,0.00044383,31]
[312442773,1705876518855,-1118.43,0.00044383,31]
[312442774,1705876518886,-749.11,0.00044383,31]
[312442775,1705876518915,-500.0,0.00044383,31]
[312442776,1705876518944,-731.16,0.00044383,31]
[312442777,1705876518973,-723.92,0.00044383,31]
[312442778,1705876519004,-500.0,0.00044383,31]
[312442779,1705876519037,-500.0,0.00044383,31]
[312442780,1705876519072,-500.0,0.00044383,31]
[312442781,1705876519104,-500.0,0.00044383,31]
[312442782,1705876519133,-654.99,0.00044383,31]
[312442783,1705876519163,-1172.22,0.00044383,31]
[312442784,1705876519192,-1046.22,0.00044383,31]
[312442785,1705876519227,-785.66,0.00044383,31]
[312442786,1705876519257,-500.0,0.00044383,31]
[312442787,1705876519287,-643.91,0.00044383,31]
[312442788,1705876519317,-500.0,0.00044383,31]
[312442789,1705876519347,-501.64,0.00044383,31]
[312442790,1705876519377,-500.0,0.00044383,31]
[312442791,1705876519406,-500.0,0.00044383,31]
[312442792,1705876519435,-500.0,0.00044383,31]
[312442793,1705876519465,-552.21,0.00044383,31]
[312442794,1705876519493,-562.71,0.00044383,31]
[312442795,1705876519527,-500.0,0.00044383,31]
[312442796,1705876519556,-708.83,0.00044383,31]
[312442797,1705876519586,-500.0,0.00044383,31]
[312442798,1705876519614,-1106.03,0.00044383,31]
[312442799,1705876519644,-645.89,0.00044383,31]
[312442800,1705876519673,-500.0,0.00044383,31]
[312442801,1705876519702,-646.94,0.00044383,31]
[312442802,1705876519731,-500.0,0.00044383,31]
[312442803,1705876519761,-500.0,0.00044383,31]
[312442804,1705876519791,-500.0,0.00044383,31]
[312442805,1705876519821,-2098.17,0.00044383,31]
[312442806,1705876519851,-941.47,0.00044383,31]
[312442807,1705876519880,-500.0,0.00044383,31]
[312442808,1705876519910,-797.7,0.00044383,31]
[312442809,1705876519941,-635.48,0.00044383,31]
[312442810,1705876519971,-1769.8,0.00044383,31]
[312442811,1705876520002,-581.22,0.00044383,31]
[312442812,1705876520033,-1092.51,0.00044383,31]
[312442813,1705876520065,-500.0,0.00044383,31]
[312442814,1705876520097,-4348.24,0.00044383,31]
[312442815,1705876520129,-1051.73,0.00044383,31]
[312442816,1705876520162,-1382.88,0.00044383,31]
[312442817,1705876520194,-1951.96,0.00044383,31]
[312442818,1705876520225,-611.42,0.00044383,31]
[312442819,1705876520256,-500.0,0.00044383,31]
[312442820,1705876520287,-992.54,0.00044383,31]
[312442821,1705876520319,-500.0,0.00044383,31]
[312442822,1705876520356,-500.18,0.00044383,31]
[312442823,1705876520388,-500.0,0.00044383,31]
[312442824,1705876520421,-565.87,0.00044383,31]
[312442825,1705876520452,-1928.6,0.00044383,31]
[312442826,1705876520486,-818.93,0.00044383,31]
[312442827,1705876520519,-500.0,0.00044383,31]
[312442828,1705876520550,-500.0,0.00044383,31]
[312442829,1705876520582,-588.35,0.00044383,31]
[312442830,1705876520613,-709.96,0.00044383,31]
[312442831,1705876520648,-3573.17,0.00044383,31]
[312442832,1705876520678,-500.0,0.00044383,31]
[312442833,1705876520711,-965.79,0.00044383,31]
[312442834,1705876520741,-1343.07,0.00044383,31]
[312442835,1705876520774,-500.0,0.00044383,31]
[312442836,1705876520805,-679.91,0.00044383,31]
[312442837,1705876520959,-1416.26,0.00044383,31]
[312442838,1705876520991,-500.0,0.00044383,31]
[312442839,1705876521027,-826.78,0.00044383,31]
[312442840,1705876521057,-2857.78,0.00044383,31]
[312442841,1705876521088,-1362.86,0.00044383,31]
[312442842,1705876521119,-1330.2,0.00044383,31]
[312442843,1705876521151,-726.4,0.00044383,31]
[312442844,1705876521185,-500.0,0.00044383,31]
[312442845,1705876521222,-1641.3,0.00044383,31]
[312442846,1705876521255,-550.18,0.00044383,31]
[312442847,1705876521288,-1310.01,0.00044383,31]
[312442848,1705876521320,-1798.01,0.00044383,31]
[312442849,1705876521352,-13031.87,0.00044383,31]
[312442850,1705876521385,-500.0,0.00044383,31]
[312442851,1705876521418,-1072.37,0.00044383,31]
[312442852,1705876521451,-1085.7,0.00044383,31]
[312442853,1705876521483,-561.03,0.00044383,31]
[312442854,1705876521515,-500.0,0.00044383,31]
[312442855,1705876521547,-2165.18,0.00044383,31]
[312442856,1705876521578,-1298.03,0.00044383,31]
[312442857,1705876521608,-8214.94,0.00044383,31]
[312442858,1705876521639,-722.05,0.00044383,31]
[312442859,1705876521670,-3737.76,0.00044383,31]
[312442860,1705876521701,-970.46,0.00044383,31]
[312442861,1705876521733,-1048.9,0.00044383,31]
[312442862,1705876521764,-500.0,0.00044383,31]
[312442863,1705876521794,-16806.33,0.00044383,31]
[312442864,1705876521826,-3948.36,0.00044383,31]
[312442865,1705876521857,-1064.74,0.00044383,31]
[312442866,1705876521889,-6101.21,0.00044383,31]
[312442867,1705876521921,-2855.03,0.00044383,31]
[312442868,1705876521954,-500.32,0.00044383,31]
[312442869,1705876521986,-675.32,0.00044383,31]
[312442870,1705876522019,-1126.85,0.00044383,31]
[312442871,1705876522052,-980.99,0.00044383,31]
[312442872,1705876522084,-574.76,0.00044383,31]
[312442873,1705876522118,-1933.9,0.00044383,31]
[312442874,1705876522151,-2304.18,0.00044383,31]
[312442875,1705876522186,-595.6,0.00044383,31]
[312442876,1705876522220,-500.0,0.00044383,31]
[312442877,1705876522258,-1448.02,0.00044383,31]
[312442878,1705876522291,-2414.11,0.00044383,31]
[312442879,1705876522325,-3726.81,0.00044383,31]
[312442880,1705876522358,-2030.45,0.00044383,31]
[312442881,1705876522391,-847.51,0.00044383,31]
[312442882,1705876522424,-898.05,0.00044383,31]
[312442883,1705876522458,-2858.65,0.00044383,31]
[312442884,1705876522490,-1358.12,0.00044383,31]
[312442885,1705876522521,-1312.1,0.00044383,31]
[312442886,1705876522552,-568.68,0.00044383,31]
[312442887,1705876522583,-500.0,0.00044383,31]
[312442888,1705876522613,-583.74,0.00044383,31]
[312442889,1705876522643,-614.24,0.00044383,31]
[312442890,1705876522673,-1606.99,0.00044383,31]
[312442891,1705876522704,-500.0,0.00044383,31]
[312442892,1705876522738,-1223.45,0.00044383,31]
[312442893,1705876522769,-1418.03,0.00044383,31]
[312442894,1705876522799,-500.0,0.00044383,31]
[312442895,1705876522833,-500.0,0.00044383,31]
[312442896,1705876522864,-500.0,0.00044383,31]
[312442897,1705876522895,-2466.94,0.00044383,31]
[312442898,1705876522926,-500.0,0.00044383,31]
[312442899,1705876522958,-500.0,0.00044383,31]
[312442900,1705876522989,-924.91,0.00044383,31]
[312442901,1705876523022,-1537.83,0.00044383,31]
[312442902,1705876523053,-640.11,0.00044383,31]
[312442903,1705876523085,-2368.54,0.00044383,31]
[312442904,1705876523116,-640.18,0.00044383,31]
[312442905,1705876523148,-2585.64,0.00044383,31]
[312442906,1705876523179,-969.19,0.00044383,31]
[312442907,1705876523214,-988.92,0.00044383,31]
[312442908,1705876523246,-5197.8,0.00044383,31]
[312442909,1705876523276,-1147.32,0.00044383,31]
[312442910,1705876523306,-503.74,0.00044383,31]
[312442911,1705876523337,-1204.72,0.00044383,31]
[312442912,1705876523368,-1125.5,0.00044383,31]
[312442913,1705876523404,-500.0,0.00044383,31]
[312442914,1705876523434,-553.42,0.00044383,31]
[312442915,1705876523465,-706.24,0.00044383,31]
[312442916,1705876523499,-2915.19,0.00044383,31]
[312442917,1705876523533,-500.0,0.00044383,31]
[312442918,1705876523566,-1615.44,0.00044383,31]
[312442919,1705876523598,-759.04,0.00044383,31]
[312442920,1705876523629,-468.35,0.00044383,31]
[312442921,1705876523661,-993.54,0.00044383,31]
[312442922,1705876523692,-500.0,0.00044383,31]
[312442923,1705876523722,-618.9,0.00044383,31]
[312442924,1705876523753,-620.1,0.00044383,31]
[312442925,1705876523783,-751.8,0.00044383,31]
[312442926,1705876524078,-3202.93,0.00044383,31]
[312442927,1705876524114,-9846.47,0.00044383,31]
[312442928,1705876524148,-8092.29,0.00044383,31]
[312442929,1705876524181,-596.28,0.00044383,31]
[312442930,1705876524214,-791.81,0.00044383,31]
[312442931,1705876524247,-9012.61,0.00044383,31]
[312442932,1705876524280,-1020.43,0.00044383,31]
[312442933,1705876524314,-730.33,0.00044383,31]
[312442934,1705876524346,-500.0,0.00044383,31]
[312442935,1705876524378,-500.0,0.00044383,31]
[312442936,1705876524409,-500.0,0.00044383,31]
[312442937,1705876524440,-500.0,0.00044383,31]
[312442938,1705876524471,-856.84,0.00044383,31]
[312442939,1705876524501,-1622.37,0.00044383,31]
[312442940,1705876524532,-500.0,0.00044383,31]
[312442941,1705876524563,-10562.0,0.00044383,31]
[312442942,1705876524594,-11680.93,0.00044383,31]
[312442943,1705876524624,-3548.3,0.00044383,31]
[312442944,1705876524654,-735.19,0.00044383,31]
[312442945,1705876524685,-500.0,0.00044383,31]
[312442946,1705876524715,-7532.62,0.00044383,31]
[312442947,1705876524745,-500.0,0.00044383,31]
[312442948,1705876524775,-2377.26,0.00044383,31]
[312442949,1705876524806,-871.97,0.00044383,31]
[312442950,1705876524836,-500.0,0.00044383,31]
[312442951,1705876524868,-766.87,0.00044383,31]
[312442952,1705876524899,-500.0,0.00044383,31]
[312442953,1705876524932,-8526.19,0.00044383,31]
[312442954,1705876524962,-500.0,0.00044383,31]
[312442955,1705876524992,-500.0,0.00044383,31]
[312442956,1705876525025,-1112.8,0.00044383,31]
[312442957,1705876525055,-1755.43,0.00044383,31]
[312442958,1705876525087,-641.2,0.00044383,31]
[312442959,1705876525119,-881.88,0.00044383,31]
[312442960,1705876525151,-1038.39,0.00044383,31]
[312442961,1705876525184,-647.93,0.00044383,31]
[312442962,1705876525217,-2698.83532897,0.00044383,31]
[312442963,1705876542409,-500.0,0.00041095,31]
[312442964,1705876542443,-500.0,0.00041095,31]
[312442965,1705876542475,-509.79046977,0.00041095,31]
[312442966,1705876542507,-2653.24,0.00041095,31]
[312442967,1705876542538,-500.0,0.00041095,31]
[312442968,1705876542568,-500.0,0.00041095,31]
[312442969,1705876542600,-1622.79,0.00041095,31]
[312442970,1705876542745,-887.82,0.00041095,31]
[312442971,1705876542779,-2192.06,0.00041095,31]
[312442972,1705876542816,-500.0,0.00041095,31]
[312442973,1705876542852,-222.2045362,0.00041095,31]
[312442974,1705876542886,-500.0,0.00041095,31]
[312442975,1705876542918,-500.0,0.00041095,31]
[312442976,1705876542949,-500.0,0.00041095,31]
[312442977,1705876542980,-205.24516956,0.00041095,31]
[312442978,1705876543014,-500.19,0.00041095,31]
[312442979,1705876543048,-500.0,0.00041095,31]
[312442980,1705876543083,-500.0,0.00041095,31]
[312442981,1705876543115,-500.0,0.00041095,31]
[312442982,1705876543146,-500.0,0.00041095,31]
[312442983,1705876543176,-500.0,0.00041095,31]
[312442984,1705876543207,-558.6,0.00041095,31]
[312442985,1705876543238,-500.0,0.00041095,31]
[312442986,1705876543269,-500.0,0.00041095,31]
[312442987,1705876543301,-500.0,0.00041095,31]
[312442988,1705876543332,-500.0,0.00041095,31]
[312442989,1705876543363,-500.0,0.00041095,31]
[312442990,1705876543397,-500.0,0.00041095,31]
[312442991,1705876543432,-500.0,0.00041095,31]
[312442992,1705876543464,-500.0,0.00041095,31]
[312442993,1705876543499,-500.0,0.00041095,31]
[312442994,1705876543533,-500.0,0.00041095,31]
[312442995,1705876543567,-500.0,0.00041095,31]
[312442996,1705876543598,-601.19,0.00041095,31]
[312442997,1705876543630,-500.0,0.00041095,31]
[312442998,1705876543663,-4489.98,0.00041095,31]
[312442999,1705876543694,-501.03,0.00041095,31]
[312443000,1705876543725,-500.0,0.00041095,31]
[312443001,1705876543757,-981.16,0.00041095,31]
[312443002,1705876543794,-500.0,0.00041095,31]
[312443003,1705876543828,-500.0,0.00041095,31]
[312443004,1705876543865,-500.0,0.00041095,31]
[312443005,1705876543904,-500.0,0.00041095,31]
[312443006,1705876543937,-500.0,0.00041095,31]
[312443007,1705876543969,-421.75554112,0.00041095,31]
[312443008,1705876544003,-500.0,0.00041095,31]
[312443009,1705876544044,-500.0,0.00041095,31]
[312443010,1705876544077,-559.24,0.00041095,31]
[312443011,1705876544117,-6787.76,0.00041095,31]
[312443012,1705876544150,-529.53,0.00041095,31]
[312443013,1705876544182,-500.0,0.00041095,31]
[312443014,1705876544221,-500.0,0.00041095,31]
[312443015,1705876544256,-500.0,0.00041095,31]
[312443016,1705876544290,-500.0,0.00041095,31]
[312443017,1705876544322,-524.77,0.00041095,31]
[312443018,1705876544354,-2135.06,0.00041095,31]
[312443019,1705876544386,-500.0,0.00041095,31]
[312443020,1705876544422,-500.0,0.00041095,31]
[312443021,1705876544455,-1015.89,0.00041095,31]
[312443022,1705876544487,-500.0,0.00041095,31]
[312443023,1705876544520,-863.57,0.00041095,31]
[312443024,1705876544556,-500.0,0.00041095,31]
[312443025,1705876544591,-500.0,0.00041095,31]
[312443026,1705876544631,-500.0,0.00041095,31]
[312443027,1705876544666,-500.0,0.00041095,31]
[312443028,1705876544698,-500.0,0.00041095,31]
[312443029,1705876544730,-528.03,0.00041095,31]
[312443030,1705876544762,-2514.68,0.00041095,31]
[312443031,1705876544794,-748.59,0.00041095,31]
[312443032,1705876544825,-500.0,0.00041095,31]
[312443033,1705876544856,-500.0,0.00041095,31]
[312443034,1705876544887,-480.29190626,0.00041095,31]
[312443035,1705876544923,-1005.16,0.00041095,31]
[312443036,1705876544959,-613.43,0.00041095,31]
[312443037,1705876544990,-500.0,0.00041095,31]
[312443038,1705876545022,-500.0,0.00041095,31]
[312443039,1705876545054,-500.0,0.00041095,31]
[312443040,1705876545086,-500.0,0.00041095,31]
[312443041,1705876545121,-322.7,0.00041643,31]
[312443042,1705876545152,-2653.24,0.00041643,31]
[312443043,1705876545188,-500.0,0.00041643,31]
[312443044,1705876545220,-1622.79,0.00041643,31]
[312443045,1705876545252,-887.82,0.00041643,31]
[312443046,1705876545285,-2192.06,0.00041643,31]
[312443047,1705876545317,-500.0,0.00041643,31]
[312443048,1705876545349,-500.19,0.00041643,31]
[312443049,1705876545380,-384.78,0.00041643,31]
[312443050,1705876545411,-500.0,0.00041643,31]
[312443051,1705876545441,-500.0,0.00041643,31]
[312443052,1705876545473,-175.79,0.00041643,31]
[312443053,1705876545505,-4489.98,0.00041643,31]
[312443054,1705876545535,-500.0,0.00041643,31]
[312443055,1705876545566,-981.16,0.00041643,31]
[312443056,1705876545597,-500.0,0.00041643,31]
[312443057,1705876545628,-6787.76,0.00041643,31]
[312443058,1705876545659,-500.0,0.00041643,31]
[312443059,1705876545689,-308.53,0.00041643,31]
[312443060,1705876545720,-529.53,0.00041643,31]
[312443061,1705876545755,-500.0,0.00041643,31]
[312443062,1705876545786,-524.77,0.00041643,31]
[312443063,1705876545817,-2135.06,0.00041643,31]
[312443064,1705876545847,-500.0,0.00041643,31]
[312443065,1705876545878,-1015.89,0.00041643,31]
[312443066,1705876545909,-863.57,0.00041643,31]
[312443067,1705876545943,-528.03,0.00041643,31]
[312443068,1705876545977,-2514.68,0.00041643,31]
[312443069,1705876546015,-748.59,0.00041643,31]
[312443070,1705876546048,-1005.16,0.00041643,31]
[312443071,1705876546079,-500.0,0.00041643,31]
[312443072,1705876546116,-2653.24,0.00042191,31]
[312443073,1705876546149,-210.05,0.00042191,31]
[312443074,1705876546183,-1622.79,0.00042191,31]
[312443075,1705876546217,-887.82,0.00042191,31]
[312443076,1705876546401,-2192.06,0.00042191,31]
[312443077,1705876546436,-500.0,0.00042191,31]
[312443078,1705876546471,-500.19,0.00042191,31]
[312443079,1705876546502,-500.0,0.00042191,31]
[312443080,1705876546535,-500.0,0.00042191,31]
[312443081,1705876546568,-4489.98,0.00042191,31]
[312443082,1705876546601,-500.0,0.00042191,31]
[312443083,1705876546633,-981.16,0.00042191,31]
[312443084,1705876546664,-500.0,0.00042191,31]
[312443085,1705876546711,-6787.76,0.00042191,31]
[312443086,1705876546746,-500.0,0.00042191,31]
[312443087,1705876546779,-529.53,0.00042191,31]
[312443088,1705876546812,-500.0,0.00042191,31]
[312443089,1705876546843,-524.77,0.00042191,31]
[312443090,1705876546875,-2135.06,0.00042191,31]
[312443091,1705876546908,-500.0,0.00042191,31]
[312443092,1705876546940,-1015.89,0.00042191,31]
[312443093,1705876546973,-863.57,0.00042191,31]
[312443094,1705876547006,-528.03,0.00042191,31]
[312443095,1705876547042,-2514.68,0.00042191,31]
[312443096,1705876547078,-748.59,0.00042191,31]
[312443097,1705876547116,-1005.16,0.00042191,31]
[312443098,1705876547150,-500.0,0.00042191,31]
[312443099,1705876547188,-2653.24,0.00042739,31]
[312443100,1705876547226,-1622.79,0.00042739,31]
[312443101,1705876547259,-887.82,0.00042739,31]
[312443102,1705876547292,-2192.06,0.00042739,31]
[312443103,1705876547324,-505.38,0.00042739,31]
[312443104,1705876547357,-500.19,0.00042739,31]
[312443105,1705876547390,-500.0,0.00042739,31]
[312443106,1705876547422,-539.22423212,0.00042739,31]
[312443107,1705876547454,-4489.98,0.00042739,31]
[312443108,1705876547486,-500.0,0.00042739,31]
[312443109,1705876547520,-981.16,0.00042739,31]
[312443110,1705876547552,-500.0,0.00042739,31]
[312443111,1705876547588,-500.0,0.00042739,31]
[312443112,1705876547623,-529.53,0.00042739,31]
[312443113,1705876547657,-500.0,0.00042739,31]
[312443114,1705876547691,-524.77,0.00042739,31]
[312443115,1705876547725,-2135.06,0.00042739,31]
[312443116,1705876547758,-500.0,0.00042739,31]
[312443117,1705876547794,-1015.89,0.00042739,31]
[312443118,1705876547827,-863.57,0.00042739,31]
[312443119,1705876547861,-528.03,0.00042739,31]
[312443120,1705876547894,-2514.68,0.00042739,31]
[312443121,1705876547927,-748.59,0.00042739,31]
[312443122,1705876547962,-1005.16,0.00042739,31]
[312443123,1705876547994,-500.0,0.00042739,31]
[312443124,1705876548041,-2653.24,0.00043287,31]
[312443125,1705876548078,-1622.79,0.00043287,31]
[312443126,1705876548115,-887.82,0.00043287,31]
[312443127,1705876548147,-2192.06,0.00043287,31]
[312443128,1705876548178,-500.19,0.00043287,31]
[312443129,1705876548210,-500.0,0.00043287,31]
[312443130,1705876548242,-4489.98,0.00043287,31]
[312443131,1705876548274,-981.16,0.00043287,31]
[312443132,1705876548305,-500.0,0.00043287,31]
[312443133,1705876548338,-500.0,0.00043287,31]
[312443134,1705876548371,-500.0,0.00043287,31]
[312443135,1705876548403,-500.0,0.00043287,31]
[312443136,1705876548436,-524.77,0.00043287,31]
[312443137,1705876548471,-529.53,0.00043287,31]
[312443138,1705876548506,-2135.06,0.00043287,31]
[312443139,1705876548538,-500.0,0.00043287,31]
[312443140,1705876548570,-1015.89,0.00043287,31]
[312443141,1705876548604,-863.57,0.00043287,31]
[312443142,1705876548637,-528.03,0.00043287,31]
[312443143,1705876548670,-2514.68,0.00043287,31]
[312443144,1705876548703,-748.59,0.00043287,31]
[312443145,1705876548736,-1005.16,0.00043287,31]
[312443146,1705876548768,-500.0,0.00043287,31]
[312443147,1705876548806,-500.0,0.00043835,31]
[312443148,1705876548840,-2653.24,0.00043835,31]
[312443149,1705876548872,-1622.79,0.00043835,31]
[312443150,1705876548906,-887.82,0.00043835,31]
[312443151,1705876548938,-2192.06,0.00043835,31]
[312443152,1705876548972,-500.19,0.00043835,31]
[312443153,1705876549006,-500.0,0.00043835,31]
[312443154,1705876549045,-4489.98,0.00043835,31]
[312443155,1705876549084,-500.0,0.00043835,31]
[312443156,1705876549119,-981.16,0.00043835,31]
[312443157,1705876549152,-500.0,0.00043835,31]
[312443158,1705876549187,-500.0,0.00043835,31]
[312443159,1705876549222,-500.0,0.00043835,31]
[312443160,1705876549256,-524.77,0.00043835,31]
[312443161,1705876549578,-529.53,0.00043835,31]
[312443162,1705876549614,-2135.06,0.00043835,31]
[312443163,1705876549650,-500.0,0.00043835,31]
[312443164,1705876549687,-1015.89,0.00043835,31]
[312443165,1705876549725,-863.57,0.00043835,31]
[312443166,1705876549758,-528.03,0.00043835,31]
[312443167,1705876549792,-2514.68,0.00043835,31]
[312443168,1705876549827,-748.59,0.00043835,31]
[312443169,1705876549861,-1005.16,0.00043835,31]
[312443170,1705876549895,-500.0,0.00043835,31]
[312443171,1705876549932,-666.36,0.00044383,31]
[312443172,1705876549968,-4639.17,0.00044383,31]
[312443173,1705876550001,-673.21,0.00044383,31]
[312443174,1705876550039,-3298.95,0.00044383,31]
[312443175,1705876550074,-500.0,0.00044383,31]
[312443176,1705876550114,-992.34,0.00044383,31]
[312443177,1705876550152,-2034.53,0.00044383,31]
[312443178,1705876550194,-660.28,0.00044383,31]
[312443179,1705876550231,-500.0,0.00044383,31]
[312443180,1705876550268,-500.0,0.00044383,31]
[312443181,1705876550305,-28036.98,0.00044383,31]
[312443182,1705876550343,-1938.75,0.00044383,31]
[312443183,1705876550379,-549.75,0.00044383,31]
[312443184,1705876550415,-903.34,0.00044383,31]
[312443185,1705876550450,-3123.65,0.00044383,31]
[312443186,1705876550485,-1216.46,0.00044383,31]
[312443187,1705876550520,-500.0,0.00044383,31]
[312443188,1705876550556,-1029.32,0.00044383,31]
[312443189,1705876550592,-1296.81,0.00044383,31]
[312443190,1705876550627,-686.97,0.00044383,31]
[312443191,1705876550663,-2125.13,0.00044383,31]
[312443192,1705876550697,-1186.92,0.00044383,31]
[312443193,1705876550731,-2234.56,0.00044383,31]
[312443194,1705876550765,-1017.01,0.00044383,31]
[312443195,1705876550800,-1214.61,0.00044383,31]
[312443196,1705876550834,-500.0,0.00044383,31]
[312443197,1705876550866,-550.46,0.00044383,31]
[312443198,1705876550898,-500.0,0.00044383,31]
[312443199,1705876550930,-980.04,0.00044383,31]
[312443200,1705876550962,-764.47,0.00044383,31]
[312443201,1705876550997,-500.0,0.00044383,31]
[312443202,1705876551029,-692.17,0.00044383,31]
[312443203,1705876551061,-500.0,0.00044383,31]
[312443204,1705876551093,-589.26,0.00044383,31]
[312443205,1705876551127,-500.0,0.00044383,31]
[312443206,1705876551160,-4050.53,0.00044383,31]
[312443207,1705876551195,-790.3,0.00044383,31]
[312443208,1705876551229,-1409.68,0.00044383,31]
[312443209,1705876551263,-884.87,0.00044383,31]
[312443210,1705876551296,-500.0,0.00044383,31]
[312443211,1705876551328,-500.0,0.00044383,31]
[312443212,1705876551364,-8615.3,0.00044383,31]
[312443213,1705876551399,-650.65,0.00044383,31]
[312443214,1705876551434,-1164.14,0.00044383,31]
[312443215,1705876551470,-509.39,0.00044383,31]
[312443216,1705876551505,-500.39,0.00044383,31]
[312443217,1705876551538,-1317.68,0.00044383,31]
[312443218,1705876551570,-500.0,0.00044383,31]
[312443219,1705876551602,-773.48,0.00044383,31]
[312443220,1705876551634,-500.0,0.00044383,31]
[312443221,1705876551668,-500.0,0.00044383,31]
[312443222,1705876551700,-500.0,0.00044383,31]
[312443223,1705876551733,-500.0,0.00044383,31]
[312443224,1705876551767,-687.04,0.00044383,31]
[312443225,1705876551801,-2437.34,0.00044383,31]
[312443226,1705876551833,-500.0,0.00044383,31]
[312443227,1705876551864,-2353.8,0.00044383,31]
[312443228,1705876551896,-2671.1,0.00044383,31]
[312443229,1705876551928,-500.0,0.00044383,31]
[312443230,1705876551964,-500.0,0.00044383,31]
[312443231,1705876551997,-1627.9,0.00044383,31]
[312443232,1705876552031,-500.0,0.00044383,31]
[312443233,1705876552072,-701.03,0.00044383,31]
[312443234,1705876552106,-744.64,0.00044383,31]
[312443235,1705876552139,-722.25,0.00044383,31]
[312443236,1705876552172,-1057.32,0.00044383,31]
[312443237,1705876552206,-500.0,0.00044383,31]
[312443238,1705876552240,-2605.29,0.00044383,31]
[312443239,1705876552275,-500.0,0.00044383,31]
[312443240,1705876552309,-500.0,0.00044383,31]
[312443241,1705876552346,-1869.91,0.00044383,31]
[312443242,1705876552378,-628.07,0.00044383,31]
[312443243,1705876552411,-853.42,0.00044383,31]
[312443244,1705876552445,-500.0,0.00044383,31]
[312443245,1705876552477,-500.0,0.00044383,31]
[312443246,1705876552509,-500.0,0.00044383,31]
[312443247,1705876552541,-1463.45,0.00044383,31]
[312443248,1705876552572,-738.08,0.00044383,31]
[312443249,1705876552603,-1856.37,0.00044383,31]
[312443250,1705876552634,-2717.95,0.00044383,31]
[312443251,1705876552666,-500.0,0.00044383,31]
[312443252,1705876552700,-671.9,0.00044383,31]
[312443253,1705876552733,-500.0,0.00044383,31]
[312443254,1705876552781,-3818.85,0.00044383,31]
[312443255,1705876552826,-576.78,0.00044383,31]
[312443256,1705876552874,-685.5,0.00044383,31]
[312443257,1705876552922,-500.0,0.00044383,31]
[312443258,1705876552972,-1834.73,0.00044383,31]
[312443259,1705876553015,-782.28,0.00044383,31]
[312443260,1705876553065,-801.69,0.00044383,31]
[312443261,1705876553110,-7874.08,0.00044383,31]
[312443262,1705876553159,-508.28,0.00044383,31]
[312443263,1705876553198,-1665.66,0.00044383,31]
[312443264,1705876553241,-1435.39,0.00044383,31]
[312443265,1705876553285,-500.0,0.00044383,31]
[312443266,1705876553342,-500.0,0.00044383,31]
[312443267,1705876553393,-3052.12,0.00044383,31]
[312443268,1705876553442,-500.0,0.00044383,31]
[312443269,1705876553496,-1653.87,0.00044383,31]